Workbook

Sheet паспорт
A1: ПАТ "УКРТРАНСГАЗ" | G1: ПАСПОРТ ФІЗИКО-ХІМІЧНИХ ПОКАЗНИКІВ ПРИРОДНОГО ГАЗУ № 662
A2: Філія "УМГ "ХАРКІВТРАНСГАЗ" | G2: переданого Харківським ЛВУМГ та прийнятого ПАТ "Харківгаз", ПАТ "Харківміськгаз", ДП "Укравтогаз"
A3: Харківський п/м Харківського ЛВУМГ | G3: Маршрут № 662
A4: Вимірювальна хіміко-аналітична лабораторія
A5: Свідоцтво про атестацію № 100-359/2015 чинне до 20.12.18 р. | K5: з газопроводу ШХ | V5: за період з | X5: 01.02.2017 р. | Z5: по | AA5: 28.02.2017 р.
A7: Число місяця | B7: Компонентний склад, мол. % | N7: Фізико-хімічні показники газу обчислені на основі компонентного складу, 101,325 кПа | X7: Температура точки роси за вологою (Р = 3.92 МПа), °С | Y7: Температура точки роси за вуглеводнями, °С | Z7: Вміст сірководню, г/м3 | AA7: Вміст меркаптанової сірки, г/м3 | AB7: Вміст механічних домішок, г/м3
N8: Густина абсолютна, кг/м3,при 20 °С, | O8: Температура вимірювання/згоряння при 20/25°С
B9: метан, С1 | C9: етан, С2 | D9: пропан, С3 | E9: ізо-бутан, і-С4 | F9: н-бутан, н-С4 | G9: нео-пентан, нео-С5 | H9: ізо-пентан, і-С5 | I9: н-пентан, н-С5 | J9: гексани та вищі, С6+ | K9: кисень, О2 | L9: азот, N2 | M9: діоксид вуглецю, CО2 | O9: Теплота згоряння нижча | R9: Теплота згоряння вища | U9: Число Воббе вище
O10: ккал/м³ | P10: МДж/м³ | Q10: кВт⋅год/м³ | R10: ккал/м³ | S10: МДж/м³ | T10: кВт⋅год/м³ | U10: ккал/м³ | V10: МДж/м³ | W10: кВт⋅год/м³
A11: 1 | B11: 93.0001 | C11: 3.5204 | D11: 0.9198 | E11: 0.1129 | F11: 0.176 | G11: 0.0052 | H11: 0.0496 | I11: 0.0405 | J11: 0.0741 | L11: 1.5912 | M11: 0.5103 | N11: 0.723 | O11: =P11*238.8459 -> 8252.125845 | P11: 34.55 | Q11: =P11/3.6 -> 9.597222222 | R11: =S11*238.8459 -> 9143.021052 | S11: 38.28 | T11: =S11/3.6 -> 10.63333333 | U11: =V11*238.8459 -> 11801.37592 | V11: 49.41 | W11: =V11/3.6 -> 13.725 | AC11: =SUM(B11:M11)+$K$42+$N$42 -> 100.0001
A12: 2 | B12: 92.7002 | C12: 3.6739 | D12: 0.9468 | E12: 0.1145 | F12: 0.183 | G12: 0.0053 | H12: 0.0529 | I12: 0.0433 | J12: 0.0752 | L12: 1.6762 | M12: 0.5286 | N12: 0.7252 | O12: =P12*238.8459 -> 8259.291222 | P12: 34.58 | Q12: 9.605555556 | R12: =S12*238.8459 -> 9152.574888 | S12: 38.32 | T12: =S12/3.6 -> 10.64444444 | U12: =V12*238.8459 -> 11794.21054 | V12: 49.38 | W12: =V12/3.6 -> 13.71666667 | AC12: 99.9999
A13: 3 | O13: 8259.291222 | P13: 34.58 | Q13: 9.605555556 | R13: 9152.574888 | S13: 38.32 | T13: 10.64444444 | U13: 11794.21054 | V13: 49.38 | W13: =V13/3.6 -> 13.71666667 | AC13: 0 | AD13: =IF(AC13=100,"ОК"," ") -> 
A14: 4 | O14: 8259.291222 | P14: 34.58 | Q14: 9.605555556 | R14: 9152.574888 | S14: 38.32 | T14: 10.64444444 | U14: 11794.21054 | V14: 49.38 | W14: 13.71666667 | AC14: 0 | AD14: =IF(AC14=100,"ОК"," ") -> 
A15: 5 | B15: 92.1233 | C15: 3.9437 | D15: 1.0108 | E15: 0.1189 | F15: 0.1998 | G15: 0.0062 | H15: 0.0576 | I15: 0.048 | J15: 0.0826 | L15: 1.8144 | M15: 0.5947 | N15: 0.7298 | O15: 8276.010435 | P15: 34.65 | Q15: 9.625 | R15: 9169.294101 | S15: 38.39 | T15: 10.66388889 | U15: 11779.87979 | V15: 49.32 | W15: 13.7 | AC15: 100 | AD15: ОК
A16: 6 | B16: 92.5435 | C16: 3.7462 | D16: 0.9637 | E16: 0.1148 | F16: 0.1871 | G16: 0.0059 | H16: 0.0551 | I16: 0.0453 | J16: 0.0844 | L16: 1.7083 | M16: 0.5458 | N16: 0.7267 | O16: 8266.456599 | P16: 34.61 | Q16: 9.613888889 | R16: 9159.740265 | S16: 38.35 | T16: 10.65277778 | U16: 11791.82208 | V16: 49.37 | W16: 13.71388889 | AC16: 100.0001
A17: 7 | B17: 92.9579 | C17: 3.5361 | D17: 0.9193 | E17: 0.1125 | F17: 0.1759 | G17: 0.0052 | H17: 0.0517 | I17: 0.0417 | J17: 0.0797 | L17: 1.6139 | M17: 0.506 | N17: 0.7234 | O17: 8252.125845 | P17: 34.55 | Q17: 9.597222222 | R17: 9145.409511 | S17: 38.29 | T17: 10.63611111 | U17: 11801.37592 | V17: 49.41 | W17: 13.725 | AC17: 99.9999
A18: 8 | B18: 92.4739 | C18: 3.8805 | D18: 0.9879 | E18: 0.1136 | F18: 0.1747 | G18: 0.0048 | H18: 0.049 | I18: 0.0397 | J18: 0.0736 | L18: 1.7265 | M18: 0.4758 | N18: 0.7261 | O18: 8273.621976 | P18: 34.64 | Q18: 9.622222222 | R18: 9166.905642 | S18: 38.38 | T18: 10.66111111 | U18: 11806.15284 | V18: 49.43 | W18: 13.73055556 | X18: -8.6 | Y18: -2.5 | Z18: 0.0012 | AA18: 0.0002 | AB18: відсутні | AC18: 100 | AD18: ОК
A19: 9 | B19: 92.5473 | C19: 3.785 | D19: 0.9655 | E19: 0.1119 | F19: 0.1746 | G19: 0.0053 | H19: 0.0489 | I19: 0.04 | J19: 0.0711 | L19: 1.7448 | M19: 0.5056 | N19: 0.7257 | O19: 8259.291222 | P19: 34.58 | Q19: 9.605555556 | R19: 9152.574888 | S19: 38.32 | T19: 10.64444444 | U19: 11791.82208 | V19: 49.37 | W19: 13.71388889 | AC19: 100 | AD19: ОК
A20: 10 | O20: 8259.291222 | P20: 34.58 | Q20: =P20/3.6 -> 9.605555556 | R20: 9152.574888 | S20: 38.32 | T20: =S20/3.6 -> 10.64444444 | U20: 11791.82208 | V20: 49.37 | W20: 13.71388889 | AC20: 0
A21: 11 | O21: 8259.291222 | P21: 34.58 | Q21: 9.605555556 | R21: 9152.574888 | S21: 38.32 | T21: 10.64444444 | U21: 11791.82208 | V21: 49.37 | W21: 13.71388889 | AC21: 0
A22: 12 | B22: 92.1626 | C22: 3.9227 | D22: 1.0044 | E22: 0.1185 | F22: 0.1952 | G22: 0.0064 | H22: 0.0575 | I22: 0.0477 | J22: 0.0832 | L22: 1.8209 | M22: 0.5809 | N22: 0.7294 | O22: 8273.621976 | P22: 34.64 | Q22: 9.622222222 | R22: 9166.905642 | S22: 38.38 | T22: 10.66111111 | U22: 11779.87979 | V22: 49.32 | W22: 13.7 | AC22: 100 | AD22: ОК
A23: 13 | B23: 92.167 | C23: 3.9156 | D23: 0.9992 | E23: 0.1171 | F23: 0.195 | G23: 0.0064 | H23: 0.0566 | I23: 0.0468 | J23: 0.0826 | L23: 1.822 | M23: 0.5917 | N23: 0.7294 | O23: 8271.233517 | P23: 34.63 | Q23: 9.619444444 | R23: 9164.517183 | S23: 38.37 | T23: 10.65833333 | U23: 11777.49133 | V23: 49.31 | W23: 13.69722222 | AC23: 100 | AD23: ОК
A24: 14 | B24: 92.2557 | C24: 3.8694 | D24: 0.9904 | E24: 0.1163 | F24: 0.1935 | G24: 0.0059 | H24: 0.0566 | I24: 0.0467 | J24: 0.0831 | L24: 1.7991 | M24: 0.5833 | N24: 0.7287 | O24: 8268.845058 | P24: 34.62 | Q24: 9.616666667 | R24: 9162.128724 | S24: 38.36 | T24: 10.65555556 | U24: 11779.87979 | V24: 49.32 | W24: 13.7 | AC24: 100 | AD24: ОК
A25: 15 | B25: 92.0624 | C25: 4.0023 | D25: 1.0208 | E25: 0.12 | F25: 0.1992 | G25: 0.0061 | H25: 0.0593 | I25: 0.0487 | J25: 0.0875 | L25: 1.811 | M25: 0.5828 | N25: 0.7303 | O25: 8285.564271 | P25: 34.69 | Q25: 9.636111111 | R25: 9178.847937 | S25: 38.43 | T25: 10.675 | U25: 11787.04516 | V25: 49.35 | W25: 13.70833333 | X25: -8.4 | Y25: -3 | AC25: 100.0001
A26: 16 | B26: 92.1392 | C26: 3.9954 | D26: 1.0098 | E26: 0.1184 | F26: 0.1988 | G26: 0.0059 | H26: 0.0589 | I26: 0.0482 | J26: 0.0877 | L26: 1.776 | M26: 0.5617 | N26: 0.7297 | O26: 8287.95273 | P26: 34.7 | Q26: =P26/3.6 -> 9.638888889 | R26: 9181.236396 | S26: 38.44 | T26: =S26/3.6 -> 10.67777778 | U26: 11796.599 | V26: 49.39 | W26: 13.71944444 | AC26: 100 | AD26: ОК
A27: 17 | O27: 8287.95273 | P27: 34.7 | Q27: 9.638888889 | R27: 9181.236396 | S27: 38.44 | T27: 10.67777778 | U27: 11796.599 | V27: 49.39 | W27: 13.71944444 | AC27: 0
A28: 18 | O28: 8287.95273 | P28: 34.7 | Q28: 9.638888889 | R28: 9181.236396 | S28: 38.44 | T28: 10.67777778 | U28: 11796.599 | V28: 49.39 | W28: 13.71944444 | AC28: 0
A29: 19 | B29: 91.7788 | C29: 4.143 | D29: 1.0483 | E29: 0.1231 | F29: 0.2102 | G29: 0.0064 | H29: 0.0623 | I29: 0.0512 | J29: 0.0921 | L29: 1.8812 | M29: 0.6033 | N29: 0.7326 | O29: 8295.118107 | P29: 34.73 | Q29: 9.647222222 | R29: 9190.790232 | S29: 38.48 | T29: 10.68888889 | U29: 11782.26825 | V29: 49.33 | W29: 13.70277778 | AC29: 99.9999
A30: 20 | B30: 91.7019 | C30: 4.1492 | D30: 1.0592 | E30: 0.1229 | F30: 0.2128 | G30: 0.0064 | H30: 0.0627 | I30: 0.0517 | J30: 0.0916 | L30: 1.9174 | M30: 0.6242 | N30: 0.7332 | O30: 8292.729648 | P30: 34.72 | Q30: 9.644444444 | R30: 9186.013314 | S30: 38.46 | T30: 10.68333333 | U30: 11775.10287 | V30: 49.3 | W30: 13.69444444 | AC30: 100 | AD30: =IF(AC30=100,"ОК"," ") -> ОК
A31: 21 | B31: 91.6913 | C31: 4.1451 | D31: 1.0559 | E31: 0.1223 | F31: 0.2111 | G31: 0.0065 | H31: 0.0609 | I31: 0.0507 | J31: 0.0897 | L31: 1.9248 | M31: 0.6417 | N31: 0.7333 | O31: 8287.95273 | P31: 34.7 | Q31: 9.638888889 | R31: 9181.236396 | S31: 38.44 | T31: 10.67777778 | U31: 11767.93749 | V31: 49.27 | W31: 13.68611111 | AC31: 100 | AD31: ОК
A32: 22 | B32: 91.6786 | C32: 4.1638 | D32: 1.0642 | E32: 0.1239 | F32: 0.2118 | G32: 0.0063 | H32: 0.0621 | I32: 0.0515 | J32: 0.0934 | K32: 0.0413 | L32: 1.9277 | M32: 0.6167 | N32: 0.7334 | O32: 8295.118107 | P32: 34.73 | Q32: 9.647222222 | R32: 9188.401773 | S32: 38.47 | T32: 10.68611111 | U32: 11775.10287 | V32: 49.3 | W32: 13.69444444 | X32: -8.9 | Y32: -3.4 | Z32: 0.0013 | AA32: 0.0002 | AB32: відсутні | AC32: 100.0413
A33: 23 | B33: 91.6535 | C33: 4.1571 | D33: 1.0639 | E33: 0.1231 | F33: 0.2113 | G33: 0.006 | H33: 0.062 | I33: 0.0514 | J33: 0.0921 | L33: 1.939 | M33: 0.6407 | N33: 0.7336 | O33: 8290.341189 | P33: 34.71 | Q33: =P33/3.6 -> 9.641666667 | R33: 9183.624855 | S33: 38.45 | T33: =S33/3.6 -> 10.68055556 | U33: 11767.93749 | V33: 49.27 | W33: 13.68611111 | AC33: 100.0001 | AD33: =IF(AC33=100,"ОК"," ") -> 
A34: 24 | O34: 8290.341189 | P34: 34.71 | Q34: 9.641666667 | R34: 9183.624855 | S34: 38.45 | T34: 10.68055556 | U34: 11767.93749 | V34: 49.27 | W34: 13.68611111 | AC34: 0
A35: 25 | O35: 8290.341189 | P35: 34.71 | Q35: 9.641666667 | R35: 9183.624855 | S35: 38.45 | T35: 10.68055556 | U35: 11767.93749 | V35: 49.27 | W35: 13.68611111 | AC35: 0
A36: 26 | B36: 91.6551 | C36: 4.1622 | D36: 1.0689 | E36: 0.1246 | F36: 0.2142 | G36: 0.0061 | H36: 0.0648 | I36: 0.0535 | J36: 0.0965 | L36: 1.9261 | M36: 0.628 | N36: 0.7338 | O36: 8297.506566 | P36: 34.74 | Q36: 9.65 | R36: 9190.790232 | S36: 38.48 | T36: =S36/3.6 -> 10.68888889 | U36: 11775.10287 | V36: 49.3 | W36: 13.69444444 | AC36: 100 | AD36: ОК
A37: 27 | B37: 91.7131 | C37: 4.1141 | D37: 1.0623 | E37: 0.1235 | F37: 0.2115 | G37: 0.0065 | H37: 0.0631 | I37: 0.0521 | J37: 0.0948 | L37: 1.9202 | M37: 0.6388 | N37: 0.7334 | O37: 8290.341189 | P37: 34.71 | Q37: 9.641666667 | R37: 9183.624855 | S37: 38.45 | T37: 10.68055556 | U37: 11770.32595 | V37: 49.28 | W37: 13.68888889 | AC37: 100 | AD37: ОК
A38: 28 | B38: 91.5537 | C38: 4.1654 | D38: 1.0817 | E38: 0.1253 | F38: 0.217 | G38: 0.0072 | H38: 0.0632 | I38: 0.0525 | J38: 0.0936 | L38: 1.9749 | M38: 0.6655 | N38: 0.7346 | O38: 8290.341189 | P38: 34.71 | Q38: 9.641666667 | R38: 9186.013314 | S38: 38.46 | T38: 10.68333333 | U38: 11760.77212 | V38: 49.24 | W38: 13.67777778 | AC38: 100 | AD38: ОК
A39: 29 | O39: 8290.341189 | P39: 34.71 | Q39: =P39/3.6 -> 9.641666667 | R39: 9186.013314 | S39: 38.46 | T39: =S39/3.6 -> 10.68333333 | U39: 11760.77212 | V39: 49.24 | W39: 13.67777778 | AC39: 0
A40: 30 | O40: 8290.341189 | P40: 34.71 | Q40: =P40/3.6 -> 9.641666667 | R40: 9186.013314 | S40: 38.46 | T40: =S40/3.6 -> 10.68333333 | U40: 11760.77212 | V40: 49.24 | W40: 13.67777778 | AC40: 0
A41: 31 | O41: 8290.341189 | P41: 34.71 | Q41: =P41/3.6 -> 9.641666667 | R41: 9186.013314 | S41: 38.46 | T41: =S41/3.6 -> 10.68333333 | U41: 11760.77212 | V41: 49.24 | W41: 13.67777778 | AC41: 0
A42: Рівень одоризації відповідає чинним нормативним документам | O42: =SUMPRODUCT(O11:O41,' розрахунок'!F7:F37)/' розрахунок'!F38 -> 8276.052405 | P42: =SUMPRODUCT(P11:P41,' розрахунок'!F7:F37)/' розрахунок'!F38 -> 34.65017572 | Q42: =SUMPRODUCT(Q11:Q41,' розрахунок'!F7:F37)/' розрахунок'!F38 -> 9.625048811 | R42: =SUMPRODUCT(R11:R41,' розрахунок'!F7:F37)/' розрахунок'!F38 -> 9169.398271 | S42: =SUMPRODUCT(S11:S41,' розрахунок'!F7:F37)/' розрахунок'!F38 -> 38.39043614 | T42: =SUMPRODUCT(T11:T41,' розрахунок'!F7:F37)/' розрахунок'!F38 -> 10.66401004
H43: Середньозважене значення теплоти згоряння:
B46: В.о. Начальника Харківського ЛВУМГ Моторя О.А. 01.03.2017
C47: Підрозділу підприємства, якому підпорядкована лабораторія | O47: прізвище | R47: підпис | V47: дата
B48: Завідувач лабораторії Харківського п/м Харківського ЛВУМГ Крупчицький Д.О. 01.03.2017
C49: Лабораторія, де здійснювалось вимірювання газу | O49: прізвище | R49: підпис | V49: дата
B50: Начальник служби ГВ та М Щербак С.О. 01.03.2017
C51: Підрозділу, відповідального за облік газу за маршрутом | O51: прізвище | R51: підпис | V51: дата

Sheet розрахунок
A2: Додаток до Паспорту фізико-хімічних показників природного газу по маршруту № 830
A4: Число місяця | B4: Теплота згоряння вища, МДж/м3 | C4: Харківська область | F4: Загальний обсяг газу, м3
C5: Обсяг газу переданого за добу, м3
C6: ='[1] розрахунок (2)'!C6 -> ПАТ "Харківгаз" смт. Безлюдівка | D6: ='[1] розрахунок (2)'!D6 -> ПАТ "Харківміськгаз" ГРС-1 м. Харків | E6: ='[1] розрахунок (2)'!E6 -> ДП "Укравтогаз" АГНКС-2 м. Харків
A7: 1 | B7: =паспорт!S11 -> 38.28 | C7: =ROUND(IF(ISNUMBER('[1] розрахунок (2)'!C7),'[1] розрахунок (2)'!C7,LEFT('[1] розрахунок (2)'!C7,LEN('[1] розрахунок (2)'!C7)-1)),0) -> 66700 | D7: =ROUND(IF(ISNUMBER('[1] розрахунок (2)'!D7),'[1] розрахунок (2)'!D7,LEFT('[1] розрахунок (2)'!D7,LEN('[1] розрахунок (2)'!D7)-1)),0) -> 1775149 | E7: =ROUND(IF(ISNUMBER('[1] розрахунок (2)'!E7),'[1] розрахунок (2)'!E7,LEFT('[1] розрахунок (2)'!E7,LEN('[1] розрахунок (2)'!E7)-1)),0) -> 1163 | F7: =SUM(C7:E7) -> 1843012
A8: 2 | B8: =паспорт!S12 -> 38.32 | C8: =ROUND(IF(ISNUMBER('[1] розрахунок (2)'!C8),'[1] розрахунок (2)'!C8,LEFT('[1] розрахунок (2)'!C8,LEN('[1] розрахунок (2)'!C8)-1)),0) -> 61528 | D8: =ROUND(IF(ISNUMBER('[1] розрахунок (2)'!D8),'[1] розрахунок (2)'!D8,LEFT('[1] розрахунок (2)'!D8,LEN('[1] розрахунок (2)'!D8)-1)),0) -> 1667797 | E8: =ROUND(IF(ISNUMBER('[1] розрахунок (2)'!E8),'[1] розрахунок (2)'!E8,LEFT('[1] розрахунок (2)'!E8,LEN('[1] розрахунок (2)'!E8)-1)),0) -> 1290 | F8: =SUM(C8:E8) -> 1730615
A9: 3 | B9: =паспорт!S13 -> 38.32 | C9: =ROUND(IF(ISNUMBER('[1] розрахунок (2)'!C9),'[1] розрахунок (2)'!C9,LEFT('[1] розрахунок (2)'!C9,LEN('[1] розрахунок (2)'!C9)-1)),0) -> 56160 | D9: =ROUND(IF(ISNUMBER('[1] розрахунок (2)'!D9),'[1] розрахунок (2)'!D9,LEFT('[1] розрахунок (2)'!D9,LEN('[1] розрахунок (2)'!D9)-1)),0) -> 1595975 | E9: =ROUND(IF(ISNUMBER('[1] розрахунок (2)'!E9),'[1] розрахунок (2)'!E9,LEFT('[1] розрахунок (2)'!E9,LEN('[1] розрахунок (2)'!E9)-1)),0) -> 789 | F9: =SUM(C9:E9) -> 1652924
A10: 4 | B10: =паспорт!S14 -> 38.32 | C10: =ROUND(IF(ISNUMBER('[1] розрахунок (2)'!C10),'[1] розрахунок (2)'!C10,LEFT('[1] розрахунок (2)'!C10,LEN('[1] розрахунок (2)'!C10)-1)),0) -> 53396 | D10: =ROUND(IF(ISNUMBER('[1] розрахунок (2)'!D10),'[1] розрахунок (2)'!D10,LEFT('[1] розрахунок (2)'!D10,LEN('[1] розрахунок (2)'!D10)-1)),0) -> 1475060 | E10: =ROUND(IF(ISNUMBER('[1] розрахунок (2)'!E10),'[1] розрахунок (2)'!E10,LEFT('[1] розрахунок (2)'!E10,LEN('[1] розрахунок (2)'!E10)-1)),0) -> 307 | F10: =SUM(C10:E10) -> 1528763
A11: 5 | B11: =паспорт!S15 -> 38.39 | C11: =ROUND(IF(ISNUMBER('[1] розрахунок (2)'!C11),'[1] розрахунок (2)'!C11,LEFT('[1] розрахунок (2)'!C11,LEN('[1] розрахунок (2)'!C11)-1)),0) -> 55514 | D11: =ROUND(IF(ISNUMBER('[1] розрахунок (2)'!D11),'[1] розрахунок (2)'!D11,LEFT('[1] розрахунок (2)'!D11,LEN('[1] розрахунок (2)'!D11)-1)),0) -> 1509907 | E11: =ROUND(IF(ISNUMBER('[1] розрахунок (2)'!E11),'[1] розрахунок (2)'!E11,LEFT('[1] розрахунок (2)'!E11,LEN('[1] розрахунок (2)'!E11)-1)),0) -> 155 | F11: =SUM(C11:E11) -> 1565576
A12: 6 | B12: =паспорт!S16 -> 38.35 | C12: =ROUND(IF(ISNUMBER('[1] розрахунок (2)'!C12),'[1] розрахунок (2)'!C12,LEFT('[1] розрахунок (2)'!C12,LEN('[1] розрахунок (2)'!C12)-1)),0) -> 60693 | D12: =ROUND(IF(ISNUMBER('[1] розрахунок (2)'!D12),'[1] розрахунок (2)'!D12,LEFT('[1] розрахунок (2)'!D12,LEN('[1] розрахунок (2)'!D12)-1)),0) -> 1698846 | E12: =ROUND(IF(ISNUMBER('[1] розрахунок (2)'!E12),'[1] розрахунок (2)'!E12,LEFT('[1] розрахунок (2)'!E12,LEN('[1] розрахунок (2)'!E12)-1)),0) -> 1000 | F12: =SUM(C12:E12) -> 1760539
A13: 7 | B13: =паспорт!S17 -> 38.29 | C13: =ROUND(IF(ISNUMBER('[1] розрахунок (2)'!C13),'[1] розрахунок (2)'!C13,LEFT('[1] розрахунок (2)'!C13,LEN('[1] розрахунок (2)'!C13)-1)),0) -> 67265 | D13: =ROUND(IF(ISNUMBER('[1] розрахунок (2)'!D13),'[1] розрахунок (2)'!D13,LEFT('[1] розрахунок (2)'!D13,LEN('[1] розрахунок (2)'!D13)-1)),0) -> 1881516 | E13: =ROUND(IF(ISNUMBER('[1] розрахунок (2)'!E13),'[1] розрахунок (2)'!E13,LEFT('[1] розрахунок (2)'!E13,LEN('[1] розрахунок (2)'!E13)-1)),0) -> 999 | F13: =SUM(C13:E13) -> 1949780
A14: 8 | B14: =паспорт!S18 -> 38.38 | C14: =ROUND(IF(ISNUMBER('[1] розрахунок (2)'!C14),'[1] розрахунок (2)'!C14,LEFT('[1] розрахунок (2)'!C14,LEN('[1] розрахунок (2)'!C14)-1)),0) -> 72213 | D14: =ROUND(IF(ISNUMBER('[1] розрахунок (2)'!D14),'[1] розрахунок (2)'!D14,LEFT('[1] розрахунок (2)'!D14,LEN('[1] розрахунок (2)'!D14)-1)),0) -> 1999926 | E14: =ROUND(IF(ISNUMBER('[1] розрахунок (2)'!E14),'[1] розрахунок (2)'!E14,LEFT('[1] розрахунок (2)'!E14,LEN('[1] розрахунок (2)'!E14)-1)),0) -> 742 | F14: =SUM(C14:E14) -> 2072881
A15: 9 | B15: =паспорт!S19 -> 38.32 | C15: =ROUND(IF(ISNUMBER('[1] розрахунок (2)'!C15),'[1] розрахунок (2)'!C15,LEFT('[1] розрахунок (2)'!C15,LEN('[1] розрахунок (2)'!C15)-1)),0) -> 71380 | D15: =ROUND(IF(ISNUMBER('[1] розрахунок (2)'!D15),'[1] розрахунок (2)'!D15,LEFT('[1] розрахунок (2)'!D15,LEN('[1] розрахунок (2)'!D15)-1)),0) -> 1899812 | E15: =ROUND(IF(ISNUMBER('[1] розрахунок (2)'!E15),'[1] розрахунок (2)'!E15,LEFT('[1] розрахунок (2)'!E15,LEN('[1] розрахунок (2)'!E15)-1)),0) -> 691 | F15: =SUM(C15:E15) -> 1971883
A16: 10 | B16: =паспорт!S20 -> 38.32 | C16: =ROUND(IF(ISNUMBER('[1] розрахунок (2)'!C16),'[1] розрахунок (2)'!C16,LEFT('[1] розрахунок (2)'!C16,LEN('[1] розрахунок (2)'!C16)-1)),0) -> 65866 | D16: =ROUND(IF(ISNUMBER('[1] розрахунок (2)'!D16),'[1] розрахунок (2)'!D16,LEFT('[1] розрахунок (2)'!D16,LEN('[1] розрахунок (2)'!D16)-1)),0) -> 1782340 | E16: =ROUND(IF(ISNUMBER('[1] розрахунок (2)'!E16),'[1] розрахунок (2)'!E16,LEFT('[1] розрахунок (2)'!E16,LEN('[1] розрахунок (2)'!E16)-1)),0) -> 1230 | F16: =SUM(C16:E16) -> 1849436
A17: 11 | B17: =паспорт!S21 -> 38.32 | C17: =ROUND(IF(ISNUMBER('[1] розрахунок (2)'!C17),'[1] розрахунок (2)'!C17,LEFT('[1] розрахунок (2)'!C17,LEN('[1] розрахунок (2)'!C17)-1)),0) -> 60752 | D17: =ROUND(IF(ISNUMBER('[1] розрахунок (2)'!D17),'[1] розрахунок (2)'!D17,LEFT('[1] розрахунок (2)'!D17,LEN('[1] розрахунок (2)'!D17)-1)),0) -> 1669449 | E17: =ROUND(IF(ISNUMBER('[1] розрахунок (2)'!E17),'[1] розрахунок (2)'!E17,LEFT('[1] розрахунок (2)'!E17,LEN('[1] розрахунок (2)'!E17)-1)),0) -> 303 | F17: =SUM(C17:E17) -> 1730504
A18: 12 | B18: =паспорт!S22 -> 38.38 | C18: =ROUND(IF(ISNUMBER('[1] розрахунок (2)'!C18),'[1] розрахунок (2)'!C18,LEFT('[1] розрахунок (2)'!C18,LEN('[1] розрахунок (2)'!C18)-1)),0) -> 56651 | D18: =ROUND(IF(ISNUMBER('[1] розрахунок (2)'!D18),'[1] розрахунок (2)'!D18,LEFT('[1] розрахунок (2)'!D18,LEN('[1] розрахунок (2)'!D18)-1)),0) -> 1573191 | E18: =ROUND(IF(ISNUMBER('[1] розрахунок (2)'!E18),'[1] розрахунок (2)'!E18,LEFT('[1] розрахунок (2)'!E18,LEN('[1] розрахунок (2)'!E18)-1)),0) -> 255 | F18: =SUM(C18:E18) -> 1630097
A19: 13 | B19: =паспорт!S23 -> 38.37 | C19: =ROUND(IF(ISNUMBER('[1] розрахунок (2)'!C19),'[1] розрахунок (2)'!C19,LEFT('[1] розрахунок (2)'!C19,LEN('[1] розрахунок (2)'!C19)-1)),0) -> 56675 | D19: =ROUND(IF(ISNUMBER('[1] розрахунок (2)'!D19),'[1] розрахунок (2)'!D19,LEFT('[1] розрахунок (2)'!D19,LEN('[1] розрахунок (2)'!D19)-1)),0) -> 1546415 | E19: =ROUND(IF(ISNUMBER('[1] розрахунок (2)'!E19),'[1] розрахунок (2)'!E19,LEFT('[1] розрахунок (2)'!E19,LEN('[1] розрахунок (2)'!E19)-1)),0) -> 965 | F19: =SUM(C19:E19) -> 1604055
A20: 14 | B20: =паспорт!S24 -> 38.36 | C20: =ROUND(IF(ISNUMBER('[1] розрахунок (2)'!C20),'[1] розрахунок (2)'!C20,LEFT('[1] розрахунок (2)'!C20,LEN('[1] розрахунок (2)'!C20)-1)),0) -> 58181 | D20: =ROUND(IF(ISNUMBER('[1] розрахунок (2)'!D20),'[1] розрахунок (2)'!D20,LEFT('[1] розрахунок (2)'!D20,LEN('[1] розрахунок (2)'!D20)-1)),0) -> 1567046 | E20: =ROUND(IF(ISNUMBER('[1] розрахунок (2)'!E20),'[1] розрахунок (2)'!E20,LEFT('[1] розрахунок (2)'!E20,LEN('[1] розрахунок (2)'!E20)-1)),0) -> 1168 | F20: =SUM(C20:E20) -> 1626395
A21: 15 | B21: =паспорт!S25 -> 38.43 | C21: =ROUND(IF(ISNUMBER('[1] розрахунок (2)'!C21),'[1] розрахунок (2)'!C21,LEFT('[1] розрахунок (2)'!C21,LEN('[1] розрахунок (2)'!C21)-1)),0) -> 56303 | D21: =ROUND(IF(ISNUMBER('[1] розрахунок (2)'!D21),'[1] розрахунок (2)'!D21,LEFT('[1] розрахунок (2)'!D21,LEN('[1] розрахунок (2)'!D21)-1)),0) -> 1604100 | E21: =ROUND(IF(ISNUMBER('[1] розрахунок (2)'!E21),'[1] розрахунок (2)'!E21,LEFT('[1] розрахунок (2)'!E21,LEN('[1] розрахунок (2)'!E21)-1)),0) -> 994 | F21: =SUM(C21:E21) -> 1661397
A22: 16 | B22: =паспорт!S26 -> 38.44 | C22: =ROUND(IF(ISNUMBER('[1] розрахунок (2)'!C22),'[1] розрахунок (2)'!C22,LEFT('[1] розрахунок (2)'!C22,LEN('[1] розрахунок (2)'!C22)-1)),0) -> 57955 | D22: =ROUND(IF(ISNUMBER('[1] розрахунок (2)'!D22),'[1] розрахунок (2)'!D22,LEFT('[1] розрахунок (2)'!D22,LEN('[1] розрахунок (2)'!D22)-1)),0) -> 1703478 | E22: =ROUND(IF(ISNUMBER('[1] розрахунок (2)'!E22),'[1] розрахунок (2)'!E22,LEFT('[1] розрахунок (2)'!E22,LEN('[1] розрахунок (2)'!E22)-1)),0) -> 1468 | F22: =SUM(C22:E22) -> 1762901
A23: 17 | B23: =паспорт!S27 -> 38.44 | C23: =ROUND(IF(ISNUMBER('[1] розрахунок (2)'!C23),'[1] розрахунок (2)'!C23,LEFT('[1] розрахунок (2)'!C23,LEN('[1] розрахунок (2)'!C23)-1)),0) -> 59157 | D23: =ROUND(IF(ISNUMBER('[1] розрахунок (2)'!D23),'[1] розрахунок (2)'!D23,LEFT('[1] розрахунок (2)'!D23,LEN('[1] розрахунок (2)'!D23)-1)),0) -> 1632726 | E23: =ROUND(IF(ISNUMBER('[1] розрахунок (2)'!E23),'[1] розрахунок (2)'!E23,LEFT('[1] розрахунок (2)'!E23,LEN('[1] розрахунок (2)'!E23)-1)),0) -> 1162 | F23: =SUM(C23:E23) -> 1693045
A24: 18 | B24: =паспорт!S28 -> 38.44 | C24: =ROUND(IF(ISNUMBER('[1] розрахунок (2)'!C24),'[1] розрахунок (2)'!C24,LEFT('[1] розрахунок (2)'!C24,LEN('[1] розрахунок (2)'!C24)-1)),0) -> 53816 | D24: =ROUND(IF(ISNUMBER('[1] розрахунок (2)'!D24),'[1] розрахунок (2)'!D24,LEFT('[1] розрахунок (2)'!D24,LEN('[1] розрахунок (2)'!D24)-1)),0) -> 1610531 | E24: =ROUND(IF(ISNUMBER('[1] розрахунок (2)'!E24),'[1] розрахунок (2)'!E24,LEFT('[1] розрахунок (2)'!E24,LEN('[1] розрахунок (2)'!E24)-1)),0) -> 493 | F24: =SUM(C24:E24) -> 1664840
A25: 19 | B25: =паспорт!S29 -> 38.48 | C25: =ROUND(IF(ISNUMBER('[1] розрахунок (2)'!C25),'[1] розрахунок (2)'!C25,LEFT('[1] розрахунок (2)'!C25,LEN('[1] розрахунок (2)'!C25)-1)),0) -> 47231 | D25: =ROUND(IF(ISNUMBER('[1] розрахунок (2)'!D25),'[1] розрахунок (2)'!D25,LEFT('[1] розрахунок (2)'!D25,LEN('[1] розрахунок (2)'!D25)-1)),0) -> 1581150 | E25: =ROUND(IF(ISNUMBER('[1] розрахунок (2)'!E25),'[1] розрахунок (2)'!E25,LEFT('[1] розрахунок (2)'!E25,LEN('[1] розрахунок (2)'!E25)-1)),0) -> 454 | F25: =SUM(C25:E25) -> 1628835
A26: 20 | B26: =паспорт!S30 -> 38.46 | C26: =ROUND(IF(ISNUMBER('[1] розрахунок (2)'!C26),'[1] розрахунок (2)'!C26,LEFT('[1] розрахунок (2)'!C26,LEN('[1] розрахунок (2)'!C26)-1)),0) -> 42285 | D26: =ROUND(IF(ISNUMBER('[1] розрахунок (2)'!D26),'[1] розрахунок (2)'!D26,LEFT('[1] розрахунок (2)'!D26,LEN('[1] розрахунок (2)'!D26)-1)),0) -> 1391472 | E26: =ROUND(IF(ISNUMBER('[1] розрахунок (2)'!E26),'[1] розрахунок (2)'!E26,LEFT('[1] розрахунок (2)'!E26,LEN('[1] розрахунок (2)'!E26)-1)),0) -> 1072 | F26: =SUM(C26:E26) -> 1434829
A27: 21 | B27: =паспорт!S31 -> 38.44 | C27: =ROUND(IF(ISNUMBER('[1] розрахунок (2)'!C27),'[1] розрахунок (2)'!C27,LEFT('[1] розрахунок (2)'!C27,LEN('[1] розрахунок (2)'!C27)-1)),0) -> 42664 | D27: =ROUND(IF(ISNUMBER('[1] розрахунок (2)'!D27),'[1] розрахунок (2)'!D27,LEFT('[1] розрахунок (2)'!D27,LEN('[1] розрахунок (2)'!D27)-1)),0) -> 1411625 | E27: =ROUND(IF(ISNUMBER('[1] розрахунок (2)'!E27),'[1] розрахунок (2)'!E27,LEFT('[1] розрахунок (2)'!E27,LEN('[1] розрахунок (2)'!E27)-1)),0) -> 1197 | F27: =SUM(C27:E27) -> 1455486
A28: 22 | B28: =паспорт!S32 -> 38.47 | C28: =ROUND(IF(ISNUMBER('[1] розрахунок (2)'!C28),'[1] розрахунок (2)'!C28,LEFT('[1] розрахунок (2)'!C28,LEN('[1] розрахунок (2)'!C28)-1)),0) -> 40751 | D28: =ROUND(IF(ISNUMBER('[1] розрахунок (2)'!D28),'[1] розрахунок (2)'!D28,LEFT('[1] розрахунок (2)'!D28,LEN('[1] розрахунок (2)'!D28)-1)),0) -> 1429682 | E28: =ROUND(IF(ISNUMBER('[1] розрахунок (2)'!E28),'[1] розрахунок (2)'!E28,LEFT('[1] розрахунок (2)'!E28,LEN('[1] розрахунок (2)'!E28)-1)),0) -> 1408 | F28: =SUM(C28:E28) -> 1471841
A29: 23 | B29: =паспорт!S33 -> 38.45 | C29: =ROUND(IF(ISNUMBER('[1] розрахунок (2)'!C29),'[1] розрахунок (2)'!C29,LEFT('[1] розрахунок (2)'!C29,LEN('[1] розрахунок (2)'!C29)-1)),0) -> 41914 | D29: =ROUND(IF(ISNUMBER('[1] розрахунок (2)'!D29),'[1] розрахунок (2)'!D29,LEFT('[1] розрахунок (2)'!D29,LEN('[1] розрахунок (2)'!D29)-1)),0) -> 1440686 | E29: =ROUND(IF(ISNUMBER('[1] розрахунок (2)'!E29),'[1] розрахунок (2)'!E29,LEFT('[1] розрахунок (2)'!E29,LEN('[1] розрахунок (2)'!E29)-1)),0) -> 1031 | F29: =SUM(C29:E29) -> 1483631
A30: 24 | B30: =паспорт!S34 -> 38.45 | C30: =ROUND(IF(ISNUMBER('[1] розрахунок (2)'!C30),'[1] розрахунок (2)'!C30,LEFT('[1] розрахунок (2)'!C30,LEN('[1] розрахунок (2)'!C30)-1)),0) -> 38796 | D30: =ROUND(IF(ISNUMBER('[1] розрахунок (2)'!D30),'[1] розрахунок (2)'!D30,LEFT('[1] розрахунок (2)'!D30,LEN('[1] розрахунок (2)'!D30)-1)),0) -> 1398310 | E30: =ROUND(IF(ISNUMBER('[1] розрахунок (2)'!E30),'[1] розрахунок (2)'!E30,LEFT('[1] розрахунок (2)'!E30,LEN('[1] розрахунок (2)'!E30)-1)),0) -> 1160 | F30: =SUM(C30:E30) -> 1438266
A31: 25 | B31: =паспорт!S35 -> 38.45 | C31: =ROUND(IF(ISNUMBER('[1] розрахунок (2)'!C31),'[1] розрахунок (2)'!C31,LEFT('[1] розрахунок (2)'!C31,LEN('[1] розрахунок (2)'!C31)-1)),0) -> 41746 | D31: =ROUND(IF(ISNUMBER('[1] розрахунок (2)'!D31),'[1] розрахунок (2)'!D31,LEFT('[1] розрахунок (2)'!D31,LEN('[1] розрахунок (2)'!D31)-1)),0) -> 1353976 | E31: =ROUND(IF(ISNUMBER('[1] розрахунок (2)'!E31),'[1] розрахунок (2)'!E31,LEFT('[1] розрахунок (2)'!E31,LEN('[1] розрахунок (2)'!E31)-1)),0) -> 673 | F31: =SUM(C31:E31) -> 1396395
A32: 26 | B32: =паспорт!S36 -> 38.48 | C32: =ROUND(IF(ISNUMBER('[1] розрахунок (2)'!C32),'[1] розрахунок (2)'!C32,LEFT('[1] розрахунок (2)'!C32,LEN('[1] розрахунок (2)'!C32)-1)),0) -> 43266 | D32: =ROUND(IF(ISNUMBER('[1] розрахунок (2)'!D32),'[1] розрахунок (2)'!D32,LEFT('[1] розрахунок (2)'!D32,LEN('[1] розрахунок (2)'!D32)-1)),0) -> 1421115 | E32: =ROUND(IF(ISNUMBER('[1] розрахунок (2)'!E32),'[1] розрахунок (2)'!E32,LEFT('[1] розрахунок (2)'!E32,LEN('[1] розрахунок (2)'!E32)-1)),0) -> 433 | F32: =SUM(C32:E32) -> 1464814
A33: 27 | B33: =паспорт!S37 -> 38.45 | C33: =ROUND(IF(ISNUMBER('[1] розрахунок (2)'!C33),'[1] розрахунок (2)'!C33,LEFT('[1] розрахунок (2)'!C33,LEN('[1] розрахунок (2)'!C33)-1)),0) -> 42258 | D33: =ROUND(IF(ISNUMBER('[1] розрахунок (2)'!D33),'[1] розрахунок (2)'!D33,LEFT('[1] розрахунок (2)'!D33,LEN('[1] розрахунок (2)'!D33)-1)),0) -> 1436835 | E33: =ROUND(IF(ISNUMBER('[1] розрахунок (2)'!E33),'[1] розрахунок (2)'!E33,LEFT('[1] розрахунок (2)'!E33,LEN('[1] розрахунок (2)'!E33)-1)),0) -> 1019 | F33: =SUM(C33:E33) -> 1480112
A34: 28 | B34: =паспорт!S38 -> 38.46 | C34: =ROUND(IF(ISNUMBER('[1] розрахунок (2)'!C34),'[1] розрахунок (2)'!C34,LEFT('[1] розрахунок (2)'!C34,LEN('[1] розрахунок (2)'!C34)-1)),0) -> 40256 | D34: =ROUND(IF(ISNUMBER('[1] розрахунок (2)'!D34),'[1] розрахунок (2)'!D34,LEFT('[1] розрахунок (2)'!D34,LEN('[1] розрахунок (2)'!D34)-1)),0) -> 1369613 | E34: =ROUND(IF(ISNUMBER('[1] розрахунок (2)'!E34),'[1] розрахунок (2)'!E34,LEFT('[1] розрахунок (2)'!E34,LEN('[1] розрахунок (2)'!E34)-1)),0) -> 1296 | F34: =SUM(C34:E34) -> 1411165
A35: 29 | B35: =паспорт!S39 -> 38.46 | C35: =ROUND(IF(ISNUMBER('[1] розрахунок (2)'!C35),'[1] розрахунок (2)'!C35,LEFT('[1] розрахунок (2)'!C35,LEN('[1] розрахунок (2)'!C35)-1)),0) -> 0 | D35: =ROUND(IF(ISNUMBER('[1] розрахунок (2)'!D35),'[1] розрахунок (2)'!D35,LEFT('[1] розрахунок (2)'!D35,LEN('[1] розрахунок (2)'!D35)-1)),0) -> 0 | E35: =ROUND(IF(ISNUMBER('[1] розрахунок (2)'!E35),'[1] розрахунок (2)'!E35,LEFT('[1] розрахунок (2)'!E35,LEN('[1] розрахунок (2)'!E35)-1)),0) -> 0 | F35: =SUM(C35:E35) -> 0
A36: 30 | B36: =паспорт!S40 -> 38.46 | C36: =ROUND(IF(ISNUMBER('[1] розрахунок (2)'!C36),'[1] розрахунок (2)'!C36,LEFT('[1] розрахунок (2)'!C36,LEN('[1] розрахунок (2)'!C36)-1)),0) -> 0 | D36: =ROUND(IF(ISNUMBER('[1] розрахунок (2)'!D36),'[1] розрахунок (2)'!D36,LEFT('[1] розрахунок (2)'!D36,LEN('[1] розрахунок (2)'!D36)-1)),0) -> 0 | E36: =ROUND(IF(ISNUMBER('[1] розрахунок (2)'!E36),'[1] розрахунок (2)'!E36,LEFT('[1] розрахунок (2)'!E36,LEN('[1] розрахунок (2)'!E36)-1)),0) -> 0 | F36: =SUM(C36:E36) -> 0
A37: 31 | B37: =паспорт!S41 -> 38.46 | C37: =ROUND(IF(ISNUMBER('[1] розрахунок (2)'!C37),'[1] розрахунок (2)'!C37,LEFT('[1] розрахунок (2)'!C37,LEN('[1] розрахунок (2)'!C37)-1)),0) -> 0 | D37: =ROUND(IF(ISNUMBER('[1] розрахунок (2)'!D37),'[1] розрахунок (2)'!D37,LEFT('[1] розрахунок (2)'!D37,LEN('[1] розрахунок (2)'!D37)-1)),0) -> 0 | E37: =ROUND(IF(ISNUMBER('[1] розрахунок (2)'!E37),'[1] розрахунок (2)'!E37,LEFT('[1] розрахунок (2)'!E37,LEN('[1] розрахунок (2)'!E37)-1)),0) -> 0 | F37: =SUM(C37:E37) -> 0
A38: Загальний обсяг газу, м3 | C38: =SUM(C7:C37) -> 1511372 | D38: =SUM(D7:D37) -> 44427728 | E38: 24917 | F38: =SUM(F7:F37) -> 45964017
A39: Енергія, МДж | C39: =SUMPRODUCT(B7:B37,C7:C37) -> 58015073.79 | D39: =SUMPRODUCT(B7:B37,D7:D37) -> 1705606830 | E39: =SUMPRODUCT(B7:B37,E7:E37) -> 956755.76 | F39: =SUMPRODUCT(B7:B37,F7:F37) -> 1764578659
A40: Теплота згоряння (середньозважене значення за місяць), МДж/м³ | C40: =C39/C38 -> 38.38570106 | D40: =D39/D38 -> 38.39059314 | E40: =E39/E38 -> 38.3977108 | F40: =F39/F38 -> 38.39043614
A41: Теплота згоряння (середньозважене значення за місяць), ккал/м³ | C41: =C40*238.8459 -> 9168.267318 | D41: =D40*238.8459 -> 9169.43577 | E41: 9171.135794 | F41: 9169.398271
A42: Теплота згоряння (середньозважене значення за місяць), кВт*год./м³ | C42: =C40/3.6 -> 10.66269474 | D42: =D40/3.6 -> 10.66405365 | E42: 10.66603078 | F42: 10.66401004

Sheet додаток
A2: Додаток до Паспорту фізико-хімічних показників природного газу №662
A4: Область | B4: ГРС, прямий споживач | C4: Cередньозважене значення вищої теплоти згоряння
C5: МДж/м³ | D5: ккал/м³ | E5: кВт*год./м³
A6: Харківська область | B6: ='[1] розрахунок'!C6 -> ПАТ "Харківгаз" смт. Безлюдівка | C6: 38.38570106 | D6: 9168.267318 | E6: 10.66269474
B7: ='[1] розрахунок'!D6 -> ПАТ "Харківміськгаз" ГРС-1 м. Харків | C7: 38.39059314 | D7: 9169.43577 | E7: 10.66405365
B8: ='[1] розрахунок'!E6 -> ДП "Укравтогаз" АГНКС-2 м. Харків | C8: 38.3977108 | D8: 9171.135794 | E8: 10.66603078
A9: Середньозважене значення вищої теплоти згоряння по маршруту № 662 | C9: 38.39043614 | D9: 9169.398271 | E9: 10.66401004
A13: В.о. Начальника Харківського ЛВУМГ Моторя О.А. 01.03.2017
A14: Підрозділу підприємства, якому підпорядкована лабораторія | D14: прізвище | E14: підпис | F14: дата
A15: Завідувач лабораторії Харківського п/м Харківського ЛВУМГ Крупчицький Д.О. 01.03.2017
A16: Лабораторія, де здійснювалось вимірювання газу | D16: прізвище | E16: підпис | F16: дата
A17: Начальник служби ГВ та М Щербак С.О. 01.03.2017
A18: Підрозділу, відповідального за облік газу за маршрутом | D18: прізвище | E18: підпис | F18: дата

Sheet variablesList (hidden)
A1: 3 | B1: x:\gaysin | C1: 10, 11, 24, 25, 127, 128, 132, 180, 207, 215 | D1: x:\
B2: x:\Illinci
B3: x:\Talne
